fUST/lending_fUST_20240302
["ID","MTS","AMOUNT","RATE_DAILY","PERIOD"]
[316068930,1709344245111,-1188.46,0.00023998,2]
[316068932,1709344245120,-1188.5,0.00023998,2]
[316068934,1709344245128,-1156.31549652,0.00023999,2]
[316068936,1709344245138,-8208.4,0.00023999,2]
[316068938,1709344245146,-8208.4,0.00023999,2]
[316068940,1709344245156,-8208.4,0.00023999,2]
[316068941,1709344245165,-8208.4,0.00023999,2]
[316068943,1709344245174,-8208.4,0.00023999,2]
[316068945,1709344245185,-8208.4,0.00023999,2]
[316068947,1709344245194,-8208.4,0.00023999,2]
[316068949,1709344245203,-8208.4,0.00023999,2]
[316068951,1709344245212,-8208.4,0.00023999,2]
[316068953,1709344245222,-8208.4,0.00023999,2]
[316068955,1709344245231,-8208.4,0.00023999,2]
[316068965,1709344245317,-8208.4,0.00023999,2]
[316068967,1709344245327,-8208.4,0.00023999,2]
[316068969,1709344245336,-8208.4,0.00023999,2]
[316068971,1709344245345,-8208.4,0.00023999,2]
[316068973,1709344245355,-8208.4,0.00023999,2]
[316068975,1709344245364,-8208.4,0.00023999,2]
[316068977,1709344245373,-8208.4,0.00023999,2]
[316068979,1709344245383,-8208.4,0.00023999,2]
[316068981,1709344245392,-8208.4,0.00023999,2]
[316068983,1709344245401,-8208.5682303,0.00023999,2]
[316068985,1709344245410,-1012.3,0.00023999,2]
[316068987,1709344245419,-1012.3,0.00023999,2]
[316068989,1709344245431,-1012.3,0.00023999,2]
[316068991,1709344245440,-1012.3,0.00023999,2]
[316068993,1709344245449,-1012.3,0.00023999,2]
[316068995,1709344245459,-1012.3,0.00023999,2]
[316068997,1709344245468,-1012.3,0.00023999,2]
[316068999,1709344245478,-1012.3,0.00023999,2]
[316069001,1709344245488,-1012.3,0.00023999,2]
[316069003,1709344245497,-788.46,0.00023999,2]
[316069005,1709344245507,-1012.3,0.00023999,2]
[316069007,1709344245518,-788.46,0.00023999,2]
[316069009,1709344245527,-1012.3,0.00023999,2]
[316069011,1709344245538,-788.46,0.00023999,2]
[316069013,1709344245547,-788.46,0.00023999,2]
[316069015,1709344245556,-1012.3,0.00023999,2]
[316069017,1709344245566,-1012.3,0.00023999,2]
[316069019,1709344245575,-788.46,0.00023999,2]
[316069020,1709344245585,-1012.3,0.00023999,2]
[316069022,1709344245594,-788.46,0.00023999,2]
[316069024,1709344245603,-1012.3,0.00023999,2]
[316069026,1709344245613,-788.46,0.00023999,2]
[316069028,1709344245623,-1012.3,0.00023999,2]
[316069030,1709344245632,-788.46,0.00023999,2]
[316069032,1709344245641,-1012.3,0.00023999,2]
[316069034,1709344245650,-788.46,0.00023999,2]
[316069036,1709344245659,-1012.40991703,0.00023999,2]
[316069038,1709344245669,-788.46,0.00023999,2]
[316069040,1709344245678,-788.46,0.00023999,2]
[316069042,1709344245687,-788.46,0.00023999,2]
[316069044,1709344245699,-788.46,0.00023999,2]
[316069046,1709344245709,-788.46,0.00023999,2]
[316069048,1709344245721,-788.46,0.00023999,2]
[316069051,1709344245731,-788.46,0.00023999,2]
[316069052,1709344245740,-788.46,0.00023999,2]
[316069054,1709344245749,-788.50064893,0.00023999,2]
[316069056,1709344245758,-789.22,0.00023999,2]
[316069058,1709344245768,-789.22,0.00023999,2]
[316069060,1709344245777,-789.22,0.00023999,2]
[316069062,1709344245786,-789.22,0.00023999,2]
[316069064,1709344245795,-789.22,0.00023999,2]
[316069066,1709344245804,-789.22,0.00023999,2]
[316069068,1709344245813,-789.22,0.00023999,2]
[316069070,1709344245822,-789.22,0.00023999,2]
[316069072,1709344245831,-789.22,0.00023999,2]
[316069074,1709344245840,-789.22,0.00023999,2]
[316069076,1709344245848,-789.22,0.00023999,2]
[316069078,1709344245858,-483.17036436,0.00023999,2]
[316069084,1709344245908,-306.04963564,0.00023999,2]
[316069087,1709344245918,-214.29036436,0.00023999,2]
[316069139,1709344246402,-500.0,0.00021241,2]
[316069141,1709344246412,-500.0,0.00021241,2]
[316069143,1709344246421,-504.15797198,0.00021241,2]
[316069145,1709344246432,-202.23408433,0.00021241,2]
[316069147,1709344246441,-500.0,0.00021241,2]
[316069149,1709344246450,-500.0,0.00021241,2]
[316069151,1709344246459,-500.0,0.00021241,2]
[316069153,1709344246469,-500.0,0.00021241,2]
[316069155,1709344246479,-500.0,0.00021241,2]
[316069157,1709344246488,-500.0,0.00021241,2]
[316069159,1709344246497,-500.0,0.00021241,2]
[316069161,1709344246506,-503.17683208,0.00021241,2]
[316069163,1709344246515,-223.01523928,0.00021241,2]
[316069165,1709344246524,-500.0,0.00021241,2]
[316069167,1709344246533,-500.0,0.00021241,2]
[316069168,1709344246542,-208.32487802,0.00021241,2]
[316069170,1709344246551,-244.04022815,0.00021241,2]
[316069173,1709344246563,-255.95977185,0.00021241,2]
[316069175,1709344246572,-601.0244587,0.00021241,2]
[316069177,1709344246581,-500.0,0.00021241,2]
[316069179,1709344246590,-500.0,0.00021241,2]
[316069181,1709344246599,-500.0,0.00021241,2]
[316069183,1709344246608,-500.0,0.00021241,2]
[316069185,1709344246617,-500.0,0.00021241,2]
[316069186,1709344246626,-500.0,0.00021241,2]
[316069188,1709344246635,-500.0,0.00021241,2]
[316069190,1709344246645,-500.0,0.00021241,2]
[316069192,1709344246653,-500.0,0.00021241,2]
[316069194,1709344246662,-340.0793526,0.00021241,2]
[316069196,1709344246671,-157.1486779,0.00022,2]
[316069198,1709344246683,-574.92963564,0.00023999,2]
[316069200,1709344246692,-789.22,0.00023999,2]
[316069202,1709344246701,-789.22,0.00023999,2]
[316069204,1709344246710,-789.22,0.00023999,2]
[316069206,1709344246722,-624.99810331,0.00023999,2]
[316069208,1709344246734,-164.22189669,0.00023999,2]
[316069210,1709344246744,-789.43314397,0.00023999,2]
[316069212,1709344246753,-598.31319,0.00023999,2]
[316069215,1709344246763,-598.31319,0.00023999,2]
[316069216,1709344246772,-75332.33996982,0.00024,5]
[316069371,1709344248314,-1979.77754066,0.00021292,2]
[316069373,1709344248323,-133.67288069,0.00023178,2]
[316069376,1709344248335,-19.32711931,0.00023178,2]
[316069378,1709344248345,-200.7312975,0.00023178,2]
[316069380,1709344248354,-153.0,0.00023178,2]
[316069381,1709344248363,-213.51,0.00023988,3]
[316069383,1709344248372,-99412.98588319,0.00024,5]
[316069534,1709344452668,2703.7108527,0.000125,2]
[316069551,1709344683972,152.4753522,0.00015,2]
[316069553,1709344793888,151.65770976,0.00014925,2]
[316069561,1709344945329,152.29624789,0.0001485,2]
[316069566,1709345213300,-893.3026782,0.00018048,2]
[316069567,1709345213322,-341.997236,0.00018209,2]
[316069568,1709345213344,-1211.1176993,0.00018219,2]
[316069569,1709345213365,-12220.2454427,0.00018733,2]
[316069570,1709345213386,-300.0,0.00018733,2]
[316069571,1709345213408,-176.22808883,0.00018734,2]
[316069572,1709345213429,-15929.12357906,0.00018734,2]
[316069573,1709345213451,-11528.4407929,0.00018741,2]
[316069574,1709345216220,176.22808883,0.00018047,2]
[316069668,1709345432007,-1810.41506191,0.000189,2]
[316069670,1709345432016,-184.00060868,0.00019177,2]
[316069672,1709345432026,-86.1451843,0.00019178,2]
[316069678,1709345432068,-81.7793647,0.00019178,2]
[316069680,1709345432079,-9289.79587651,0.0002,2]
[316069856,1709345438429,-1270.38666448,0.0002,2]
[316069857,1709345438532,-603.12900096,0.0002,2]
[316069858,1709345438544,-260.29428997,0.0002,2]
[316069860,1709345438556,-2116.24078427,0.0002,2]
[316069862,1709345438567,-8649.80804101,0.0002,2]
[316069863,1709345438576,-308.96567424,0.0002,2]
[316069864,1709345438585,-192.52964175,0.0002,2]
[316069865,1709345438594,-640.06006059,0.00020547,2]
[316069866,1709345438604,-498.34280762,0.00020547,2]
[316069867,1709345438613,-500.0,0.00020547,2]
[316069868,1709345438622,-500.0,0.00020547,2]
[316069869,1709345438631,-583.39400593,0.00020547,2]
[316069870,1709345438640,-500.0,0.00020547,2]
[316069871,1709345438649,-500.0,0.00020547,2]
[316069872,1709345438659,-500.0,0.00020547,2]
[316069873,1709345438668,-500.0,0.00020547,2]
[316069874,1709345438678,-500.0,0.00020547,2]
[316069875,1709345438687,-755.6,0.00020547,2]
[316069876,1709345438697,-500.0,0.00020547,2]
[316069877,1709345438706,-500.0,0.00020547,2]
[316069878,1709345438715,-502.12499241,0.00020547,2]
[316069879,1709345438724,-606.01,0.00020547,2]
[316069880,1709345438734,-500.0,0.00020547,2]
[316069881,1709345438743,-500.0,0.00020547,2]
[316069882,1709345438753,-500.0,0.00020547,2]
[316069883,1709345438762,-500.0,0.00020547,2]
[316069884,1709345438773,-500.0,0.00020547,2]
[316069885,1709345438782,-500.0,0.00020547,2]
[316069886,1709345438791,-500.0,0.00020547,2]
[316069887,1709345438801,-1660.61,0.00020547,2]
[316069888,1709345438810,-546.27,0.00020547,2]
[316069889,1709345438819,-500.0,0.00020547,2]
[316069890,1709345438830,-500.0,0.00020547,2]
[316069891,1709345438839,-500.0,0.00020547,2]
[316069892,1709345438850,-500.0,0.00020547,2]
[316069893,1709345438859,-500.0,0.00020547,2]
[316069894,1709345438868,-500.0,0.00020547,2]
[316069895,1709345438877,-730.68,0.00020547,2]
[316069896,1709345438886,-500.0,0.00020547,2]
[316069897,1709345438896,-500.0,0.00020547,2]
[316069898,1709345438905,-500.0,0.00020547,2]
[316069899,1709345438916,-500.0,0.00020547,2]
[316069900,1709345438924,-503.32360291,0.00020547,2]
[316069901,1709345438934,-500.0,0.00020547,2]
[316069902,1709345438943,-500.0,0.00020547,2]
[316069903,1709345438952,-500.0,0.00020547,2]
[316069904,1709345438961,-500.0,0.00020547,2]
[316069905,1709345438972,-502.7752803,0.00020547,2]
[316069906,1709345438982,-500.0,0.00020547,2]
[316069907,1709345438992,-777.38,0.00020547,2]
[316069908,1709345439003,-500.0,0.00020547,2]
[316069909,1709345439013,-500.0,0.00020547,2]
[316069910,1709345439022,-500.0,0.00020547,2]
[316069911,1709345439031,-500.0,0.00020547,2]
[316069912,1709345439040,-500.0,0.00020547,2]
[316069913,1709345439049,-500.0,0.00020547,2]
[316069914,1709345439058,-500.0,0.00020547,2]
[316069915,1709345439067,-500.0,0.00020547,2]
[316069916,1709345439077,-471.49856942,0.00020547,2]
[316069917,1709345439086,-2310.49,0.00020547,2]
[316069918,1709345439095,-500.0,0.00020547,2]
[316069919,1709345439106,-7992.94,0.00020547,2]
[316069920,1709345439116,-970.12,0.00020547,2]
[316069921,1709345439126,-500.0,0.00020694,2]
[316069922,1709345439135,-500.0,0.00020694,2]
[316069923,1709345439145,-177.93,0.00020783,3]
[316069924,1709345439154,-889.67,0.00020783,3]
[316069925,1709345439164,-500.0,0.00020794,2]
[316069926,1709345439174,-500.0,0.00020794,2]
[316069927,1709345439183,-755.6,0.00020889,2]
[316069928,1709345439192,-606.01,0.00020889,2]
[316069929,1709345439202,-500.0,0.00020889,2]
[316069930,1709345439212,-1660.61,0.00020889,2]
[316069931,1709345439221,-546.27,0.00020889,2]
[316069932,1709345439230,-730.68,0.00020889,2]
[316069933,1709345439239,-500.0,0.00020889,2]
[316069934,1709345439248,-777.38,0.00020889,2]
[316069935,1709345439257,-504.8811068,0.00020889,2]
[316069936,1709345439266,-2310.49,0.00020889,2]
[316069937,1709345439275,-500.0,0.00020889,2]
[316069938,1709345439284,-7992.94,0.00020889,2]
[316069939,1709345439294,-970.12,0.00020889,2]
[316069940,1709345439302,-500.0,0.0002089,2]
[316069941,1709345439311,-500.0,0.0002089,2]
[316069942,1709345439320,-500.0,0.0002089,2]
[316069943,1709345439329,-500.0,0.0002089,2]
[316069944,1709345439338,-500.0,0.0002089,2]
[316069945,1709345439348,-500.0,0.0002089,2]
[316069946,1709345439357,-500.0,0.0002089,2]
[316069947,1709345439366,-500.0,0.0002089,2]
[316069948,1709345439376,-500.0,0.0002089,2]
[316069949,1709345439386,-500.0,0.0002089,2]
[316069950,1709345439395,-508.8827711,0.0002089,2]
[316069951,1709345439404,-500.0,0.0002089,2]
[316069952,1709345439414,-500.0,0.0002089,2]
[316069953,1709345439423,-8235.44669183,0.00020992,2]
[316069954,1709345439433,-500.0,0.00020994,2]
[316069955,1709345439442,-500.0,0.00020994,2]
[316069956,1709345439451,-14589.41124307,0.00020998,2]
[316069957,1709345439461,-300.0,0.00021,9]
[316069958,1709345439471,-12220.2454427,0.00021079,2]
[316069959,1709345439480,-500.0,0.0002108,2]
[316069960,1709345439489,-500.0,0.0002108,2]
[316069961,1709345439497,-500.0,0.0002108,2]
[316069962,1709345439506,-500.0,0.0002108,2]
[316069963,1709345439515,-500.0,0.00021081,2]
[316069964,1709345439524,-755.6,0.00021081,2]
[316069965,1709345439533,-500.0,0.00021081,2]
[316069966,1709345439542,-606.01,0.00021081,2]
[316069967,1709345439551,-500.0,0.00021081,2]
[316069968,1709345439560,-500.0,0.00021081,2]
[316069969,1709345439569,-500.0,0.00021081,2]
[316069970,1709345439588,-1660.61,0.00021081,2]
[316069971,1709345439599,-546.27,0.00021081,2]
[316069972,1709345439608,-500.0,0.00021081,2]
[316069973,1709345439617,-730.68,0.00021081,2]
[316069974,1709345439628,-500.0,0.00021081,2]
[316069975,1709345439637,-501.50447989,0.00021081,2]
[316069976,1709345439646,-229.69282333,0.00021081,2]
[316069977,1709345439655,-449.92856865,0.00021081,2]
[316069978,1709345439665,-777.38,0.00021081,2]
[316069979,1709345439675,-2310.49,0.00021081,2]
[316069980,1709345439684,-500.0,0.00021081,2]
[316069981,1709345439693,-7992.94,0.00021081,2]
[316069982,1709345439702,-500.0,0.00021082,2]
[316069983,1709345439712,-500.0,0.00021082,2]
[316069984,1709345439721,-500.0,0.00021163,2]
[316069985,1709345439731,-500.0,0.00021163,2]
[316069986,1709345439740,-500.0,0.00021163,2]
[316069987,1709345439750,-500.0,0.00021163,2]
[316069988,1709345439759,-500.0,0.00021163,2]
[316069989,1709345439769,-500.0,0.00021163,2]
[316069990,1709345439779,-500.0,0.00021163,2]
[316069991,1709345439789,-500.0,0.00021163,2]
[316069992,1709345439798,-500.0,0.00021163,2]
[316069993,1709345439808,-500.0,0.00021163,2]
[316069994,1709345439818,-500.0,0.00021163,2]
[316069995,1709345439827,-500.0,0.00021164,2]
[316069996,1709345439837,-500.0,0.00021164,2]
[316069997,1709345439846,-500.0,0.00021164,2]
[316069998,1709345439855,-755.6,0.00021164,2]
[316069999,1709345439864,-500.0,0.00021164,2]
[316070000,1709345439874,-606.01,0.00021164,2]
[316070001,1709345439883,-500.0,0.00021164,2]
[316070002,1709345439893,-613.10474758,0.00021164,2]
[316070003,1709345439902,-500.0,0.00021164,2]
[316070004,1709345439912,-500.0,0.00021164,2]
[316070005,1709345439922,-1660.61,0.00021164,2]
[316070006,1709345439932,-546.27,0.00021164,2]
[316070007,1709345439941,-500.0,0.00021164,2]
[316070008,1709345439951,-406.93546264,0.00021164,2]
[316070009,1709345439960,-500.0,0.00021164,2]
[316070010,1709345439970,-730.68,0.00021164,2]
[316070011,1709345439979,-777.38,0.00021164,2]
[316070012,1709345439988,-500.0,0.00021164,2]
[316070013,1709345439998,-2310.49,0.00021164,2]
[316070014,1709345440007,-500.0,0.00021164,2]
[316070015,1709345440017,-7992.94,0.00021164,2]
[316070016,1709345440026,-2666.1748,0.00021198,7]
[316070017,1709345440035,-344.21267906,0.00021241,2]
[316070018,1709345440045,-500.0,0.00021241,2]
[316070019,1709345440054,-500.0,0.00021241,2]
[316070020,1709345440064,-500.0,0.00021241,2]
[316070021,1709345440073,-329.13621934,0.00021241,2]
[316070022,1709345440083,-500.0,0.00021241,2]
[316070023,1709345440092,-500.0,0.00021241,2]
[316070025,1709345440103,-500.0,0.00021245,2]
[316070026,1709345440112,-500.0,0.00021245,2]
[316070027,1709345440121,-606.01,0.00021245,2]
[316070028,1709345440130,-500.0,0.00021245,2]
[316070029,1709345440139,-500.0,0.00021245,2]
[316070030,1709345440149,-1660.61,0.00021245,2]
[316070031,1709345440158,-730.68,0.00021245,2]
[316070032,1709345440169,-777.38,0.00021245,2]
[316070033,1709345440178,-2310.49,0.00021245,2]
[316070034,1709345440188,-500.0,0.00021245,2]
[316070035,1709345440197,-500.0,0.00021246,2]
[316070036,1709345440206,-500.0,0.00021246,2]
[316070037,1709345440215,-755.6,0.00021246,2]
[316070038,1709345440224,-500.0,0.00021246,2]
[316070039,1709345440234,-500.0,0.00021246,2]
[316070040,1709345440243,-500.0,0.00021246,2]
[316070041,1709345440252,-500.0,0.00021246,2]
[316070042,1709345440261,-546.27,0.00021246,2]
[316070043,1709345440271,-438.93212905,0.00021246,2]
[316070044,1709345440280,-500.0,0.00021246,2]
[316070045,1709345440289,-7992.94,0.00021246,2]
[316070046,1709345440299,-163.19443267,0.00021247,2]
[316070047,1709345440309,-500.0,0.00021333,2]
[316070048,1709345440318,-500.0,0.00021333,2]
[316070049,1709345440327,-35859.96762084,0.00021334,4]
[316070050,1709345440336,-500.0,0.00021343,2]
[316070051,1709345440345,-524.77947103,0.00021343,2]
[316070052,1709345440354,-344.55827319,0.00021343,2]
[316070053,1709345440363,-500.0,0.00021343,2]
[316070054,1709345440373,-204.4532614,0.00021343,2]
[316070055,1709345440382,-500.0,0.00021343,2]
[316070056,1709345440391,-500.0,0.00021343,2]
[316070057,1709345440401,-500.0,0.00021343,2]
[316070058,1709345440411,-500.0,0.00021343,2]
[316070059,1709345440420,-500.0,0.00021343,2]
[316070060,1709345440431,-500.0,0.00021343,2]
[316070061,1709345440440,-500.0,0.00021343,2]
[316070062,1709345440449,-500.0,0.00021343,2]
[316070063,1709345440459,-162.39724044,0.00021343,2]
[316070064,1709345440468,-500.0,0.00021343,2]
[316070065,1709345440477,-500.0,0.00021343,2]
[316070066,1709345440486,-500.0,0.00021343,2]
[316070068,1709345440496,-500.0,0.00021343,2]
[316070070,1709345440505,-500.0,0.00021343,2]
[316070072,1709345440514,-500.0,0.00021343,2]
[316070073,1709345440523,-500.0,0.00021343,2]
[316070075,1709345440533,-500.0,0.00021343,2]
[316070077,1709345440542,-500.0,0.00021343,2]
[316070079,1709345440551,-500.0,0.00021343,2]
[316070080,1709345440560,-500.0,0.00021343,2]
[316070081,1709345440570,-500.0,0.00021343,2]
[316070082,1709345440579,-500.0,0.00021343,2]
[316070083,1709345440588,-500.0,0.00021343,2]
[316070084,1709345440597,-500.0,0.00021343,2]
[316070085,1709345440607,-500.0,0.00021343,2]
[316070086,1709345440617,-500.0,0.00021343,2]
[316070087,1709345440626,-500.0,0.00021343,2]
[316070088,1709345440636,-500.0,0.00021343,2]
[316070089,1709345440645,-500.0,0.00021343,2]
[316070090,1709345440654,-500.0,0.00021343,2]
[316070091,1709345440665,-500.0,0.00021343,2]
[316070092,1709345440675,-500.0,0.00021343,2]
[316070093,1709345440685,-500.0,0.00021343,2]
[316070094,1709345440694,-500.0,0.00021343,2]
[316070095,1709345440704,-500.0,0.00021343,2]
[316070096,1709345440713,-500.0,0.00021343,2]
[316070097,1709345440723,-500.0,0.00021343,2]
[316070098,1709345440733,-500.0,0.00021343,2]
[316070099,1709345440742,-500.0,0.00021343,2]
[316070100,1709345440752,-500.0,0.00021343,2]
[316070101,1709345440761,-500.0,0.00021343,2]
[316070102,1709345440770,-500.0,0.00021343,2]
[316070103,1709345440779,-500.0,0.00021343,2]
[316070104,1709345440788,-500.0,0.00021343,2]
[316070105,1709345440797,-500.0,0.00021343,2]
[316070106,1709345440806,-500.0,0.00021343,2]
[316070107,1709345440815,-500.0,0.00021343,2]
[316070108,1709345440825,-500.0,0.00021343,2]
[316070109,1709345440834,-500.0,0.00021343,2]
[316070110,1709345440844,-500.0,0.00021343,2]
[316070111,1709345440853,-500.0,0.00021343,2]
[316070112,1709345440862,-500.0,0.00021343,2]
[316070113,1709345440871,-500.0,0.00021343,2]
[316070114,1709345440880,-500.0,0.00021343,2]
[316070115,1709345440890,-500.0,0.00021343,2]
[316070116,1709345440899,-500.0,0.00021343,2]
[316070117,1709345440908,-500.0,0.00021343,2]
[316070118,1709345441017,-500.0,0.00021343,2]
[316070119,1709345441027,-535.87485752,0.00021343,2]
[316070120,1709345441036,-500.0,0.00021343,2]
[316070121,1709345441045,-560.23474835,0.00021343,2]
[316070122,1709345441054,-500.0,0.00021343,2]
[316070123,1709345441063,-500.0,0.00021343,2]
[316070124,1709345441072,-500.0,0.00021343,2]
[316070125,1709345441082,-500.0,0.00021343,2]
[316070126,1709345441091,-500.0,0.00021343,2]
[316070127,1709345441101,-500.0,0.00021343,2]
[316070128,1709345441111,-500.0,0.00021343,2]
[316070129,1709345441120,-500.0,0.00021343,2]
[316070130,1709345441130,-646.90987607,0.00021343,2]
[316070131,1709345441139,-500.0,0.00021343,2]
[316070132,1709345441149,-500.0,0.00021343,2]
[316070133,1709345441158,-500.0,0.00021343,2]
[316070134,1709345441167,-500.0,0.00021343,2]
[316070135,1709345441177,-500.0,0.00021343,2]
[316070136,1709345441186,-500.0,0.00021343,2]
[316070137,1709345441197,-500.0,0.00021343,2]
[316070138,1709345441207,-500.0,0.00021343,2]
[316070139,1709345441216,-500.0,0.00021343,2]
[316070140,1709345441225,-500.0,0.00021343,2]
[316070141,1709345441234,-500.0,0.00021343,2]
[316070142,1709345441244,-500.0,0.00021343,2]
[316070143,1709345441253,-500.0,0.00021343,2]
[316070144,1709345441262,-500.0,0.00021343,2]
[316070145,1709345441272,-500.0,0.00021343,2]
[316070146,1709345441281,-500.0,0.00021343,2]
[316070147,1709345441291,-500.0,0.00021343,2]
[316070148,1709345441300,-500.0,0.00021343,2]
[316070149,1709345441310,-500.0,0.00021343,2]
[316070150,1709345441319,-500.0,0.00021343,2]
[316070151,1709345441328,-500.0,0.00021343,2]
[316070152,1709345441338,-500.0,0.00021343,2]
[316070153,1709345441350,-500.0,0.00021343,2]
[316070154,1709345441360,-500.0,0.00021343,2]
[316070155,1709345441371,-500.0,0.00021343,2]
[316070156,1709345441380,-500.0,0.00021343,2]
[316070157,1709345441389,-500.0,0.00021343,2]
[316070158,1709345441399,-500.0,0.00021343,2]
[316070159,1709345441409,-500.0,0.00021343,2]
[316070160,1709345441420,-500.0,0.00021343,2]
[316070161,1709345441430,-500.0,0.00021343,2]
[316070162,1709345441439,-500.0,0.00021343,2]
[316070163,1709345441449,-500.0,0.00021343,2]
[316070164,1709345441458,-500.0,0.00021343,2]
[316070165,1709345441467,-500.0,0.00021343,2]
[316070166,1709345441477,-500.0,0.00021343,2]
[316070167,1709345441486,-500.0,0.00021343,2]
[316070168,1709345441496,-500.0,0.00021343,2]
[316070169,1709345441505,-1505.39,0.00021344,2]
[316070170,1709345441514,-1505.39,0.00021344,2]
[316070171,1709345441523,-1505.39,0.00021344,2]
[316070172,1709345441533,-1505.39,0.00021344,2]
[316070173,1709345441542,-1505.39,0.00021344,2]
[316070174,1709345441552,-50000.0,0.00021345,3]
[316070175,1709345441561,-50000.0,0.00021345,3]
[316070176,1709345441571,-59742.68458348,0.00021345,3]
[316070177,1709345441580,-606.01,0.00021347,2]
[316070178,1709345441589,-1660.61,0.00021347,2]
[316070179,1709345441598,-730.68,0.00021347,2]
[316070180,1709345441607,-777.38,0.00021347,2]
[316070181,1709345441616,-2310.49,0.00021347,2]
[316070182,1709345441625,-500.0,0.00021347,2]
[316070183,1709345441634,-924.81947604,0.00021348,2]
[316070184,1709345441643,-422.46356771,0.00021348,2]
[316070185,1709345441652,-7480.67333813,0.0002135,4]
[316070186,1709345441662,-7248.43276657,0.00021364,2]
[316070187,1709345441672,-23661.80149022,0.0002137,2]
[316070188,1709345441681,-206.538538,0.0002137,2]
[316070189,1709345441690,-167.924549,0.00021422,2]
[316070190,1709345441700,-624.1486797,0.00021849,2]
[316070191,1709345441709,-400.0,0.00021918,2]
[316070192,1709345441718,-157.1486779,0.00022355,2]
[316070193,1709345441728,-327.2251864,0.00022356,2]
[316070194,1709345441737,-1785.07537976,0.00022357,2]
[316070195,1709345441746,-495.009816,0.000225,10]
[316070196,1709345441755,-755.6,0.00022507,2]
[316070197,1709345441764,-546.27,0.00022507,2]
[316070198,1709345441773,-7992.94,0.00022507,2]
[316070199,1709345441782,-2516.362073,0.00022507,2]
[316070200,1709345441792,-2516.362073,0.00022789,2]
[316070201,1709345441801,-620.20743398,0.00022941,2]
[316070202,1709345441811,-280.43,0.00023,7]
[316070203,1709345441820,-2792.57192339,0.00023,2]
[316070204,1709345441830,-500.0,0.00023069,2]
[316070205,1709345441839,-500.0,0.00023069,2]
[316070206,1709345441848,-2516.362073,0.0002307,2]
[316070207,1709345441857,-1000.0,0.00023154,5]
[316070208,1709345441866,-200.7312975,0.00023178,2]
[316070209,1709345441875,-153.0,0.00023278,2]
[316070210,1709345441884,-500.0,0.0002335,2]
[316070211,1709345441893,-500.0,0.0002335,2]
[316070212,1709345441902,-500.0,0.0002335,2]
[316070213,1709345441912,-500.0,0.0002335,2]
[316070214,1709345441921,-2516.362073,0.00023351,2]
[316070215,1709345441931,-5000.0,0.00023395,5]
[316070216,1709345441940,-5000.0,0.00023395,5]
[316070217,1709345441949,-5000.0,0.00023397,5]
[316070218,1709345441958,-1000.0,0.00023402,5]
[316070219,1709345441968,-1000.0,0.00023405,5]
[316070220,1709345441977,-1000.0,0.00023407,5]
[316070221,1709345441987,-2551.05,0.00023471,3]
[316070222,1709345441996,-724.43688507,0.00023615,2]
[316070223,1709345442006,-2516.362073,0.00023633,2]
[316070224,1709345442016,-724.43688504,0.00023647,2]
[316070225,1709345442024,-724.43688504,0.00023678,2]